Cogmind - Beta 16.1 @@@ ROGUE MODE // 2026.03.21 @ 16:11:12 Player: Ez Result: Destroyed by G-34 Mercenary with Small Laser Performance ------------- Evolutions (1) 500 Regions Visited (2) 400 Robots Destroyed (43) 215 Value Destroyed (770) 770 Prototype IDs (0) 0 Alien Tech Used (0) 0 Bonus (0) 0 TOTAL SCORE: 1885 Bonus ------- None Cogmind --------- Core Integrity 0/400 Matter 300/300 Energy 100/100 System Corruption 0% Temperature Cool (12) Movement Core (700) Ox13 Location -9/Materials Parts ------- > --- POWER (1) -------- (None) > --- PROPULSION (3) --- (None) > --- UTILITY (3) ------ High-capacity Storage Unit > --- WEAPON (2) ------- (None) > --- INVENTORY (20) --- Light Ion Engine Structural Scanner Assault Rifle Light Assault Rifle Peak State ------------ > --- POWER ------------ Improved Ion Engine > --- PROPULSION ------- Light Treads Light Treads > --- UTILITY ---------- High-capacity Storage Unit Light Armor Plating > --- WEAPON ----------- Light EM Pulse Cannon Light EM Pulse Cannon > --- INVENTORY -------- Ion Engine Ion Engine Light Assault Rifle [Rating: 10] Favorites ----------- Power Improved Ion Engine Engine Improved Ion Engine Power Core Light Nuclear Core Propulsion Light Treads Treads Light Treads Utility High-capacity Storage Unit Storage High-capacity Storage Unit Protection Light Armor Plating Weapon Hammer Energy Cannon Light EM Pulse Cannon Ballistic Gun Light Assault Rifle Ballistic Cannon Light Cannon Impact Weapon Hammer Build | -11 -10 -9 ------- Run | Yrd Mat Mat Slots Evolved 2 | . . 2 Power . | . . . Propulsion 1 | . . 1 Utility 1 | . . 1 Weapon . | . . . Parts Attached 18 | 5 12 1 Power 3 | 1 2 . Engine 2 | 1 1 . Core 1 | . 1 . Reactor . | . . . Propulsion 3 | 2 1 . Treads 3 | 2 1 . Leg . | . . . Wheel . | . . . Hover . | . . . Flight . | . . . Utility 5 | 1 3 1 Device . | . . . Storage 2 | 1 1 . Processor . | . . . Hackware . | . . . Protection 3 | . 2 1 Artifact . | . . . Weapon 7 | 1 6 . Energy Gun . | . . . Energy Cannon 3 | . 3 . Ballistic Gun 2 | 1 1 . Ballistic Cannon 1 | . 1 . Launcher . | . . . Special Weapon . | . . . Impact Weapon 1 | . 1 . Slashing Weapon . | . . . Piercing Weapon . | . . . Special Melee Weapon . | . . . Unidentified Prototypes . | . . . Parts Lost 14 | . 8 6 Power 3 | . 2 1 Propulsion 3 | . 2 1 Utility 3 | . 1 2 Weapon 5 | . 3 2 Highest Loss Streak 4 | . 3 4 To Critical Strikes . | . . . Average Backups 4 | . 4 4 Power 1 | . 1 1 Propulsion . | . . . Utility 2 | . 2 1 Weapon . | . . 2 Tool/Special . | . . . Unused Backups 5 | . 2 3 Power 2 | . 1 1 Propulsion . | . . . Utility 1 | . . 1 Weapon 2 | . 1 1 Tool/Special . | . . . Average Slot Usage (%) 82 | . 84 69 Engine 9 | . 9 10 Core 2 | . 2 . Treads 22 | . 24 9 Storage 13 | . 14 11 Protection 8 | . 7 18 Energy Cannon 4 | . 5 . Ballistic Gun 8 | . 8 10 Ballistic Cannon 1 | . 1 . Impact Weapon 9 | . 8 10 Peak Build Rating 10 | 5 10 7 Average Rating 6 | 3 7 6 On Entrance 3 | . 5 5 Avg Prop Armor Cover (%) . | . . . Naked Turns . | . . . Heaviest Build 58 | 11 58 55 Greatest Support 40 | 40 40 20 Greatest Overweight (x) 17 | 3 2 17 Average Overweight (x) 1 | . 1 2 Largest Inventory Capacity 20 | 8 20 20 Average Capacity 18 | 7 18 20 Most Carried 7 | 1 7 5 Average Carried 4 | . 4 4 Final Capacity 20 | 8 20 20 Final Carried 6 | 1 6 4 Class Distribution -------------------- 100% | Mutant Dominant Class ---------------- Mutant | -10/Materials Mutant | -9/Materials Resources | -11 -10 -9 ----------- Run | Yrd Mat Mat Matter Collected 637 | . 531 106 Remotely . | . . . Salvage Created 1155 | . 967 188 Parts 78 | . 63 15 Haulers Intercepted 2 | . 1 1 Recyclers Shooed 1 | . 1 . Parts Field Recycled . | . . . Retrieved Matter . | . . . Parts Self-Destructed . | . . . Prevented . | . . . Parts Restored . | . . . Kills | -11 -10 -9 ------- Run | Yrd Mat Mat Combat Hostiles Destroyed 27 | . 22 5 Melee 4 | . 4 . Guns 10 | . 5 5 Cannons 10 | . 10 . Classes Destroyed 7 | . 7 . Builder 7 | . 6 1 Hauler 2 | . 1 1 Recycler 1 | . 1 . Operator 3 | . 3 . Watcher 3 | . 2 1 Swarmer 13 | . 9 4 Grunt 14 | . 13 1 Best Kill Streak 6 | . 6 3 Combat Bots Only 5 | . 5 3 Max Kills in Single Turn 2 | . 2 1 Gunslinging . | . . . Exploded . | . . . Melee 1 | . 1 . Uniques/NPCs Destroyed . | . . . Combat | -11 -10 -9 -------- Run | Yrd Mat Mat Hostile Shots Fired 291 | . 177 114 Missed 77 | . 58 19 Hits 214 | . 119 95 Projectile 214 | . 119 95 Critical Strikes 2 | . . 2 Damage Taken 2223 | . 1238 985 Core 625 | . 223 402 Absorbed by Shields . | . . . Regen/Repaired (Parts) 119 | . 119 . Core Remaining (%) 55 | 100 10 . Volleys Fired 96 | . 64 32 Largest 2 | . 2 1 Hottest 112 | . 112 20 Shots Fired 110 | . 78 32 Gun 71 | . 39 32 Cannon 39 | . 39 . Launcher . | . . . Special . | . . . Kinetic 79 | . 47 32 Thermal . | . . . Explosive . | . . . Electromagnetic 31 | . 31 . Robot Hit Streak 10 | . 10 4 Robot Miss Streak 3 | . 3 3 Penetration Max . | . . . Secondary Targets . | . . . Shots Hit Robots 93 | . 75 18 Core Hits 43 | . 34 9 Critical Kills . | . . . Critical Parts Destroyed 4 | . 4 . Critical Strikes 4 | . 4 . Smash 4 | . 4 . Melee Attacks 72 | . 67 5 Impact 72 | . 67 5 Slashing . | . . . Piercing . | . . . Sneak Attacks 7 | . 7 . Combat Hostiles . | . . . Follow-up Attacks . | . . . Damage Inflicted 2128 | . 1880 248 Guns 434 | . 186 248 Cannons 581 | . 581 . Explosions 62 | . 62 . Melee 1051 | . 1051 . Ramming . | . . . Kinetic 488 | . 240 248 Thermal 62 | . 62 . Explosive . | . . . Electromagnetic 527 | . 527 . Impact 1051 | . 1051 . Slashing . | . . . Piercing . | . . . Highest Corruption . | . . . Average Corruption . | . . . Corruption Purged . | . . . Corruption Blocked . | . . . Overload Shots . | . . . Overflow Damage 276 | . 276 . Projectiles . | . . . Explosions 13 | . 13 . Melee 263 | . 263 . Knockbacks 7 | . 7 . Impact 7 | . 7 . Kinetic . | . . . Secondary . | . . . Self-Inflicted Damage 39 | . 39 . Shots 1 | . 1 . Rammed . | . . . Targets Rammed . | . . . Kicked . | . . . Crushed . | . . . Highest Temperature 282 | . 282 11 Average Temperature 90 | . 91 6 Received Heat Transfer 906 | . 471 435 Effects 2 | . 2 . Energy Bleed 1 | . 1 . Interference 1 | . 1 . Siege Activations . | . . . Martial Activations . | . . . Shielding Activations . | . . . Robots Disrupted . | . . . Combat Hostiles . | . . . Robots Corrupted 8 | . 8 . Combat Hostiles 3 | . 3 . Parts Fried 13 | . 13 . Impact Corruptions 15 | . 15 . Robots Melted . | . . . Combat Hostiles . | . . . Parts Melted . | . . . Heat Transferred 100 | . 100 . Parts Sabotaged . | . . . Parts Stolen . | . . . Parts Stripped . | . . . Power Chain Reactions 1 | . 1 . Alert | -11 -10 -9 ------- Run | Yrd Mat Mat Maximum Alert Level . | . . . Low Security (%) 100 | 100 100 100 Level 1 . | . . . Level 2 . | . . . Level 3 . | . . . Level 4 . | . . . Level 5 . | . . . High Security . | . . . Max Security . | . . . Peak Influence 170 | . 170 85 Initial 9 | . . 9 Average 38 | . 41 23 Influence Increases 810 | . 654 156 Destroy 0b10 Robot/C 540 | . 440 100 Destroy 0b10 Robot/NC 80 | . 65 15 Destroy Leader 110 | . 96 14 Successful Hack 24 | . 14 10 Disable Machine 15 | . 15 . Destroy Structure 26 | . 24 2 Lose Combat Pursuer 15 | . . 15 Influence Decreases 810 | . 631 179 Entered New Map 14 | . . 14 Time Decay 583 | . 455 128 Lost Part 117 | . 80 37 Purge Threat 96 | . 96 . Squads Dispatched 7 | . 6 1 Investigation 3 | . 3 . Extermination . | . . . Reinforcement 4 | . 3 1 Assault . | . . . Garrison . | . . . Intercept . | . . . Searches Triggered . | . . . Construction Impeded . | . . . Haulers Reinforced . | . . . Active Scanning Responses . | . . . Cargo Convoy Interrupts . | . . . Stealth | -11 -10 -9 --------- Run | Yrd Mat Mat Distress Signals 5 | . 4 1 Communications Jammed . | . . . Distress Signals . | . . . Times Spotted 51 | . 39 12 Peak Tracking Total 5 | . 5 4 Tactical Retreats 1 | . . 1 Traps | -11 -10 -9 ------- Run | Yrd Mat Mat Traps Triggered 1 | . 1 . Indirectly . | . . . Trap Hack Attempts . | . . . Triggered . | . . . Disarmed 4 | . 4 . Reprogrammed . | . . . Reused . | . . . Traps Extracted . | . . . Installed . | . . . Triggered . | . . . Machines | -11 -10 -9 ---------- Run | Yrd Mat Mat Machines Disabled 1 | . 1 . Max in Single Turn 1 | . 1 . Machines Repaired . | . . . Machines Dismantled . | . . . Machines Sabotaged . | . . . Overloaded Fab Kills . | . . . Hacking | -11 -10 -9 --------- Run | Yrd Mat Mat Machines Accessed 9 | . 6 3 Terminals 7 | . 5 2 Fabricators . | . . . Repair Stations 1 | . 1 . Recycling Units . | . . . Scanalyzers 1 | . . 1 Garrison Access . | . . . Total Hacks 20 | . 14 6 Successful 11 | . 8 3 Failed 9 | . 6 3 Catastrophic 3 | . 1 2 Database Lockouts . | . . . Manual 9 | . 4 5 Terminals 16 | . 11 5 Fabricators . | . . . Repair Stations 3 | . 3 . Recycling Units . | . . . Scanalyzers 1 | . . 1 Garrison Access . | . . . Terminal Hacks 5 | . 5 . Unreport Threat 1 | . 1 . Locate Traps 1 | . 1 . Disarm Traps 1 | . 1 . Recall Investigation 1 | . 1 . Registered Components 1 | . 1 . Fabricator Hacks . | . . . Repair Station Hacks 2 | . 2 . Scan Component 1 | . 1 . Repair 1 | . 1 . Recycling Unit Hacks . | . . . Scanalyzer 1 | . . 1 Retrieve Study 1 | . . 1 Garrison Access Hacks . | . . . Unauthorized Hacks 3 | . 1 2 Terminals 3 | . 1 2 Assimilate 1 | . . 1 Botnet 2 | . 1 1 Fabricators . | . . . Repair Stations . | . . . Recycling Units . | . . . Scanalyzers . | . . . Garrison Access . | . . . Data Cores Recovered . | . . . Used . | . . . Hacking Detections 7 | . 6 1 Full Trace Events 3 | . 3 . Feedback Events . | . . . Feedback Blocked . | . . . Robot Schematics Acquired . | . . . Robots Built . | . . . Authchips . | . . . Time . | . . . Total Robot Build Rating . | . . . Part Schematics Acquired . | . . . Parts Built . | . . . Authchips . | . . . Time . | . . . Total Part Build Rating . | . . . Part Studies Acquired 1 | . . 1 Parts Repaired 1 | . 1 . Time 26 | . 26 . Parts Recycled . | . . . Recycled Matter . | . . . Retrieved Matter . | . . . Retrieved Components . | . . . Parts Scanalyzed . | . . . Part Schematics Acquired . | . . . Parts Damaged . | . . . Bothacking | -11 -10 -9 ------------ Run | Yrd Mat Mat Used RIF Installer . | . . . Robots Hacked . | . . . Non-combat . | . . . Combat . | . . . Robot Hacks Applied . | . . . Relay Couplers Released . | . . . Fabnet Peak Effective % . | . . . Robots Rewired . | . . . Allies Hacked . | . . . Hacks Repelled . | . . . Allies | -11 -10 -9 -------- Run | Yrd Mat Mat Total Allies . | . . . Largest Group . | . . . Highest-Rated Group . | . . . Highest-Rated Ally . | . . . Total Orders . | . . . Ally Attacks . | . . . Total Damage . | . . . Kills . | . . . Allies Corrupted . | . . . Allies Melted . | . . . Intel | -11 -10 -9 ------- Run | Yrd Mat Mat Active Infowar (turns) . | . . . Robot Analysis Total . | . . . Derelict Logs Recovered . | . . . Drone Launches . | . . . Drone Recoveries . | . . . Exploration | -11 -10 -9 ------------- Run | Yrd Mat Mat Turns Passed 3399 | 58 2937 404 Spaces Moved 1187 | 33 1044 110 Core 11 | 8 . 3 Treads 1176 | 25 1044 107 Legs . | . . . Wheels . | . . . Hover . | . . . Flight . | . . . Fastest Speed 50 | 50 160 240 Average Speed 243 | 153 244 266 Slowest Speed 900 | 200 320 900 Overloaded Moves . | . . . Propulsion Burnouts . | . . . Robots Hopped . | . . . Potential Cave-ins . | . . . Cave-ins Triggered . | . . . Exploration Rate (%) 37 | 2 98 12 Regions Visited 2 Branch Regions . Pre-discovered Areas . | . . . Known Exits Taken . | . . . Unknown Exits Taken 2 | 1 1 . Scrap Searched . | . . . Spaces Dug 22 | . 20 2 Terrain Destroyed 27 | . 25 2 Melee 22 | . 20 2 Projectile . | . . . AOE 5 | . 5 . Terrain Rammed . | . . . Walls Destroyed . | . . . Machines Disabled . | . . . Actions | -11 -10 -9 --------- Run | Yrd Mat Mat Total 1464 | 38 1245 181 Wait 52 | . 20 32 Move 1185 | 32 1043 110 Hop . | . . . Pick Up 17 | 1 16 . Fast Attach 9 | 5 4 . Attach 13 | . 11 2 Detach 6 | . 6 . Swap 8 | . 8 . Drop 6 | . 6 . Fire 96 | . 64 32 Melee 72 | . 67 5 Ram . | . . . Kick . | . . . Crush . | . . . Escape Stasis . | . . . Rewire . | . . . Trap . | . . . Miscellaneous . | . . . Route ------- -11/Scrapyard -10/Materials (discovered 5 exits: *Mat x3 / [*Min x2]) -9/Materials History --------- Turn | Location | Event 9 | -11/Scrapyard | Discovered new exit (range 16) 59 | -11/Scrapyard | Entered Materials 205 | -10/Materials | Discovered new exit (range 9) 277 | -10/Materials | Discovered new exit (range 7) 313 | -10/Materials | Build established: Mutant 421 | -10/Materials | Discovered new exit (range 16) 2053 | -10/Materials | Core integrity fell below 50% 2162 | -10/Materials | Repaired Lgt. Treads 2215 | -10/Materials | Lost 3 parts (1p1u1w) 2227 | -10/Materials | Core integrity fell below 20% 2530 | -10/Materials | Discovered new exit (range 15) 2799 | -10/Materials | Discovered new exit (range 16) 2996 | -10/Materials | Entered another Materials area 2996 | -9/Materials | Evolved 2 slots: Propulsion x1, Utility x1 3390 | -9/Materials | Core integrity fell below 50% 3397 | -9/Materials | Core integrity fell below 20% 3400 | -9/Materials | Destroyed by G-34 Mercenary with Small Laser Last Messages --------------- System interface override in place. W-16 Scout sends out distress signal. Connecting with Terminal... W-16 Scout destroyed. Lgt. Treads+ destroyed. K-01 Serf collects debris. K-01 Serf cleans the Terminal. G-34 Mercenary destroyed. K-01 Serf cleans the Terminal. K-01 Serf collects debris. Acquired 33 matter. K-01 Serf collects debris. Acquired 3 matter. Ion Engine destroyed. Lgt. Armor Plating destroyed. Acquired 3 matter. Assault Rifle destroyed. Critical hit (Burn: +37). Hammer destroyed. G-34 Mercenary suffers critical hit (Burn). Map ----- +----------------------------------------------------+ | | | ????????????????????????????????????????????? | | ????????????????????????????????????????????? | | ????????????????????????????????????????????? | | ?##?????????????????????????????????????????? | | ?# ? !?!#?????????????????????????????????? | | ?# !!!#?????????????????????????????????? | | ?# !! #?????????????????????????????????? | | ?# #######???????????????????????????? | | ?# ## #???????????????????????????? | | ?# """ ## #???????????????????????????? | | ?# """ ## #???????????????????????????? | | ?? """ ## #???????????????????????????? | | ???? ??# #???????????????????????????? | | ?#+###+##### #???????????????????????????? | | ?# = + #???????????????????????????? | | ?# * #### * #???????????????? #?????????? | | ?# #??#[ #??????????????? #?????????? | | ?# #############??#+####### ##????????? | | ?# # ! ! + ?? ^ ^ ?????????? | | ?# # #???## ??????????? | | ## %[# #???#" ^ """ ??????????? | | == # #???#Tg """ #?????????? | | ==/ #???#" """ +?????????? | | % # | ######!*gY #?????????? | | #####] # [ + [%@g #?????????? | | ????# # ! #########+#######?????????? | | ????# ###########?????????????????????????? | | ????# #???????????????????????????????????? | | ????# #???????????????????????????????????? | | ???? ???????????????????????????????????? | | ??? ##??????????????????????????????????? | | ??? #???????????????????????????????????? | | ??! #???????????????????????????????????? | | ??[ #???????????????????????????????????? | | ?[[ #???????????????????????????????????? | | ?#### #???????????????????????????????????? | | ????# #???????????????????????????????????? | | ????# ????????????????????????????????????? | | ????? ????????????????????????????????????? | | ????? ????????????????????????????????????? | | ????????????????????????????????????????????? | | ????????????????????????????????????????????? | | ????????????????????????????????????????????? | | ????????????????????????????????????????????? | | ????????????????????????????????????????????? | | ????????????????????????????????????????????? | | ????????????????????????????????????????????? | | ????????????????????????????????????????????? | | ????????????????????????????????????????????? | +----------------------------------------------------+ Best States ------------- Heat Dissipation 28 Energy Generation 14 Energy Capacity 265 Matter Stores 300 Matter Capacity 300 Sight Range 16 Terrain Scan Density 10 Armor Coverage 300 Evasion (%) 40 Recoil Reduction 2 Item Schematics ----------------- None Robot Schematics ------------------ None Fabricated ------------ Nothing Repaired ---------- Lgt. Treads | 15% | -10/Materials Studied --------- Lgt. Treads | -9/Materials | Hacked Alien Tech Used ----------------- None Achievements -------------- GoHome() Part-time Excavator Challenges ------------ None Game ------ Seed MinesnifferWarlordSword Manual? 0 Play Time 00:40:00 Cumulative 28.7 hours Start 2026.03.20 @ 20:15:34 End 2026.03.21 @ 16:11:12 Sessions 3 Manual Loads 0 Difficulty Rogue Special Mode None Game No. 79 Rogue 77 Adventurer 2 Explorer 0 Win Type - Total 0 Types 0/0/0/0/0/0/0/0/0/0 Lore% 7 Gallery% 19 Achievement% 16 Wizard Run 0 Options --------- Layout 1 ASCII 0 Keyboard 0 Movement Mouse Keybinds 0 Fullscreen 2 Font 32/SmallcapsGlow Map View 50x35 Zoom Use 0% Tactical HUD 0 Map Filters NONE Filters NONE Steam 1 RUN: 14584e31-fda0-4064-ae30-36487c3c66ab